[Event "85th Tata Steel Challengers 2023"]
[Site "Wijk aan Zee"]
[Date "2023.01.22"]
[Round "8.7"]
[White "Supi, Luis Paulo"]
[Black "Adhiban, B.."]
[Result "0-1"]
[ECO "C02"]
[WhiteElo "2608"]
[BlackElo "2610"]
[Annotator "TA"]
[PlyCount "98"]
[EventDate "2023.01.10"]
[EventType "tourn"]
[EventCountry "NED"]
[SourceTitle "playchess.com"]
[Source "ChessBase"]
[SourceQuality "1"]
[TimeControl "40/6000+30:30/3000+30:900+30"]

{[%evp 14,98,12,25,27,8,25,21,33,0,0,-25,-25,-24,-24,-34,-3,-18,-12,-5,-6,-25,-26,-27,-28,-66,-60,-80,-41,-49,-41,-55,-46,-52,-38,-58,-66,-59,-56,-58,-62,-54,-67,-59,-58,-60,-20,-29,-12,-75,-83,-81,-68,-77,-116,-93,-35,-52,-20,-18,-19,-108,-121,-702,-659,-787,-787,-749,-735,-789,-737,-789,-793,-793,-776,-781,-779,-779,-779,-779,-779,-765,-760,-734,-627,-977,-935]} 1. e4 {[%emt 0:00:02]} e6 {[%emt 0:00:14]} 2. d4 {[%emt 0:00:13]} d5 {[%emt 0:00:03]} 3. e5 {[%emt 0:00:04]} c5 {[%emt 0:00:05]} 4. c3 {[%emt 0:00:03]} Nc6 {[%emt 0:00:02]} 5. Nf3 {[%emt 0:00:09]} Bd7 {[%emt 0:00:04]} 6. Be2 {[%emt 0:00:17]} Nge7 {[%emt 0:00:05]} 7. O-O {[%emt 0:01:14]} Ng6 $1 {[%emt 0:00:04] 7...Ng6 is better than 7...Nf5.} 8. Be3 {[%emt 0:00:58]} Qb6 {[%emt 0:00:05] C02: French: Advance Variation.} 9. b3 {[%emt 0:02:45]} Be7 {[%emt 0:03:05]} 10. a3 {[%emt 0:04:23]} a5 {[%emt 0:06:04] [#] The position is equal.} 11. Nbd2 $146 {[%emt 0:01:05]} (11. g3 $5 {[%cal Rh2h4]}) ({Predecessor:} 11. g3 O-O 12. h4 f6 13. h5 Nh8 14. exf6 Rxf6 15. c4 cxd4 16. Bg5 d3 17. Qxd3 Rxf3 18. Qxf3 Bxg5 {0-1 Pajak,J (2310)-Yanofsky,D (2390) Canada-ch (zt) 1986}) 11... O-O {[%emt 0:00:49]} 12. Re1 {[%emt 0:09:27]} cxd4 {[%emt 0:04:40]} 13. cxd4 {[%emt 0:00:15]} Na7 {[%emt 0:04:26]} 14. Bd3 {[%emt 0:24:00][%cal Oh2h4]} Nb5 {[%emt 0:11:51]} 15. Qc1 {[%emt 0:05:11]} Rfc8 {[%emt 0:06:46]} 16. Qb2 {[%emt 0:00:12]} Na7 {[%emt 0:04:26][%cal Bb5a7,Ba7c6,Bc6b4][%mdl 32]} 17. Rac1 {[%emt 0:06:26]} Bb5 {[%emt 0:02:36]} 18. Bb1 {[%emt 0:04:40]} Ba6 {[%emt 0:03:35]} 19. a4 {[%emt 0:13:03] Inhibits Nb5.} Nc6 {[%emt 0:07:21]} 20. g3 {[%emt 0:01:43]} Nb4 {[%emt 0:01:24]} 21. h4 {[%emt 0:00:23]} h6 {[%emt 0:00:23]} 22. h5 {[%emt 0:02:34]} Nf8 {[%emt 0:00:06]} 23. g4 {[%emt 0:01:57]} Qd8 {[%emt 0:02:29]} 24. Kh2 {[%emt 0:05:34]} Nd3 {[%emt 0:00:39]} 25. Bxd3 {[%emt 0:00:08]} Bxd3 {[%emt 0:00:03]} 26. Rc3 {[%emt 0:01:55]} Rxc3 {[%emt 0:05:00]} 27. Qxc3 {[%emt 0:00:02]} Be4 {[%emt 0:00:12]} 28. Qb2 {[%emt 0:04:06]} Bb4 {[%emt 0:04:58]} 29. Kg3 {[%emt 0:00:44]} Nh7 {[%emt 0:18:05] Strongly threatening ...Bxf3.} 30. Rc1 {[%emt 0:02:51]} Bd3 {[%emt 0:00:10]} 31. Nf1 {[%emt 0:01:29]} (31. Ne1 $11 {keeps the balance.} Ba6 32. Qb1) 31... f5 $17 {[%emt 0:01:50] aiming for ...fxg4.} 32. exf6 {[%emt 0:03:37] And now Ne5 would win.} Bd6+ {[%emt 0:06:26] A strong pair of Bishops.} ({But not} 32... gxf6 33. Bxh6 Qe7 34. Rd1 $14) ({Reject} 32... Qxf6 $6 33. Ne5 Bd6 34. Rd1 $11) 33. Kh3 {[%emt 0:03:00]} Qxf6 {[%emt 0:06:56]} ({Much weaker is} 33... gxf6 34. Bxh6 f5 35. g5 $11) 34. N1h2 {[%emt 0:01:41]} Rf8 {[%emt 0:01:15] Black has more active pieces.} (34... Be4 $17 35. Ne5 Ng5+ 36. Bxg5 Qxg5) 35. Ne5 $15 {[%emt 0:01:48]} Bxe5 {[%emt 0:00:13]} 36. dxe5 {[%emt 0:00:03]} Ng5+ $40 {[%emt 0:00:07][%mdl 128] Black attacks.} 37. Kg3 {[%emt 0:03:24] [#]} (37. Kg2 $1 $11 {was the only way to keep the balance.} Qd8 38. Kg3) 37... Ne4+ $1 $17 {[%emt 0:01:16]} 38. Kg2 $2 {[%emt 0:00:03][%mdl 8192] Now White is beyond hope.} (38. Kh3 $17 Nxf2+ 39. Bxf2 Qxf2 40. Qxf2 Rxf2 41. Rc8+ Kh7 42. Kg3) 38... Qh4 $19 {[%emt 0:00:35][%cal Of8f3] Threatens to win with ...Rf3! Black is clearly winning.} 39. Re1 {[%emt 0:05:32] [#]} Rf3 $3 {[%emt 0:04:01][%mdl 576] Deflection} 40. Nxf3 {[%emt 0:02:49]} Qxg4+ {[%emt 0:00:05]} 41. Kh2 {[%emt 0:01:25]} Qxh5+ {[%emt 0:03:17]} 42. Kg2 {[%emt 0:00:51]} Qg4+ {[%emt 0:01:07][%mdl 64] Deflection} 43. Kh2 {[%emt 0:00:06]} Qxf3 {[%emt 0:00:26] White is weak on the light squares} 44. Qd4 {[%emt 0:18:15]} Be2 {[%emt 0:04:31] ( -> ...Qh5+)} 45. Rg1 {[%emt 0:03:39]} Qh5+ {[%emt 0:07:08]} 46. Kg2 {[%emt 0:00:08]} Bg4 {[%emt 0:05:16][%csl Gg4][%cal Rh5h3]} 47. Kf1 {[%emt 0:00:14]} Qh3+ {[%emt 0:01:09]} 48. Ke1 {[%emt 0:00:03]} Qf3 {[%emt 0:00:17][%csl Gg4][%cal Rf3e2]} 49. Kf1 {[%emt 0:00:47]} h5 {[%emt 0:03:22] Artfully played by Adhiban.   Weighted Error Value: White=0.29 (precise) /Black=0.11 (very precise)} 0-1

[Event "85th Tata Steel Challengers 2023"]
[Site "Wijk aan Zee"]
[Date "2023.01.24"]
[Round "9.1"]
[White "Donchenko, Alexander"]
[Black "L'Ami, Erwin"]
[Result "0-1"]
[ECO "D35"]
[WhiteElo "2627"]
[BlackElo "2627"]
[Annotator "TA"]
[PlyCount "114"]
[EventDate "2023.01.10"]
[EventType "tourn"]
[EventCountry "NED"]
[SourceTitle "playchess.com"]
[Source "ChessBase"]
[SourceQuality "1"]
[TimeControl "40/6000+30:30/3000+30:900+30"]

{[%evp 12,114,28,18,14,17,26,18,18,7,16,31,31,25,25,24,25,25,25,32,35,20,29,0,0,0,0,0,0,-40,-27,-43,-43,-54,-46,-52,-40,-45,-45,-44,-48,-43,-36,-40,-36,-61,-33,-62,-62,-62,-62,-62,-62,-64,-65,-69,-35,-45,-30,-30,-32,-30,-43,-50,-30,-30,-30,-30,-22,-33,-13,-27,0,-6,-11,-12,0,0,0,0,0,0,0,0,0,0,0,0,0,0,0,0,0,0,0,0,0,-12847,-12847,-27999,-27999,-27999,-27999,-27999,-27999]} 1. d4 {[%emt 0:00:03]} d5 {[%emt 0:00:23]} 2. c4 {[%emt 0:00:10]} e6 {[%emt 0:00:09]} 3. Nc3 {[%emt 0:00:16]} Nf6 {[%emt 0:00:12]} 4. cxd5 {[%emt 0:00:31]} exd5 {[%emt 0:00:09]} 5. Bg5 {[%emt 0:00:20]} c6 {[%emt 0:00:17]} 6. e3 {[%emt 0:00:28]} Bf5 {[%emt 0:00:09]} 7. Qb3 {[%emt 0:00:35]} (7. Qf3 {simplifies} Bg6 8. Bxf6 Qxf6 9. Qxf6 gxf6 10. h4) 7... Qb6 {[%emt 0:01:22] D35: Queen's Gambit Declined: Exchange Variation.} 8. Bxf6 {[%emt 0:00:28]} gxf6 {[%emt 0:00:16]} (8... Qxb3 {simplifies} 9. axb3 gxf6 10. Nf3 h5) 9. Kd2 {[%emt 0:00:18] is recently more successful than 9.Nf3.} (9. Nf3 {simplifies} Bg6 10. Be2 Qxb3 11. axb3 Nd7 12. O-O) 9... Nd7 {[%emt 0:06:29][%cal Bb8d7,Bd7f6,Bf6e4][%mdl 32] The position is equal.} (9... Qxb3 {simplifies} 10. axb3 Nd7 11. Bd3 Bg6) 10. Bd3 {[%emt 0:00:33] [#]} Bxd3 $5 $146 {[%emt 0:08:41][%mdl 8] An interesting novelty.} ({Predecessor:} 10... Bg6 11. Nf3 Qc7 12. Rac1 Nb6 13. Nxd5 Nxd5 14. Qxd5 Bb4+ 15. Ke2 Qe7 16. Qb3 O-O-O {1-0 Xiong,J (2692)-Grischuk,A (2745) Speed Chess Q2 KO blitz 2022 (2.9)}) 11. Kxd3 {[%emt 0:10:49]} Rg8 {[%emt 0:06:13]} 12. g3 {[%emt 0:04:17]} Qxb3 {[%emt 0:10:41]} 13. axb3 {[%emt 0:00:07]} f5 {[%emt 0:00:08]} 14. Nf3 {[%emt 0:08:22][%cal Bg1f3,Bf3h4,Bh4g2,Bg2f4][%mdl 32]} Nf6 {[%emt 0:07:02]} 15. Nh4 {[%emt 0:13:58]} Ne4 {[%emt 0:02:12]} 16. Rhf1 {[%emt 0:02:02]} (16. Nxf5 $2 {too greedy.} Nxf2+ 17. Ke2 Nxh1 18. Rxh1 O-O-O $19) 16... Nd6 {[%emt 0:03:00]} 17. f3 {[%emt 0:00:56]} Be7 {[%emt 0:03:31]} 18. Ng2 {[%emt 0:00:40]} h5 {[%emt 0:02:33][%cal Oh5h4]} 19. Nf4 {[%emt 0:07:08]} h4 {[%emt 0:02:36]} 20. Rg1 {[%emt 0:14:57]} hxg3 {[%emt 0:04:35]} 21. Nce2 {[%emt 0:00:59]} Kd7 {[%emt 0:06:59]} 22. Rxg3 {[%emt 0:01:36]} Rh8 {[%emt 0:02:35]} 23. h3 {[%emt 0:06:18]} Ne8 {[%emt 0:07:16]} 24. Kc2 {[%emt 0:04:34]} Nc7 {[%emt 0:10:19]} 25. Rg7 {[%emt 0:02:25]} Ke8 {[%emt 0:00:44]} 26. Rag1 {[%emt 0:06:49][%cal Oh3h4]} Kf8 {[%emt 0:02:26]} 27. R7g2 {[%emt 0:04:46]} Re8 {[%emt 0:03:25]} 28. Kd3 {[%emt 0:03:30][%cal Oh3h4]} Bd8 {[%emt 0:06:39]} 29. Ng3 {[%emt 0:04:54]} Bg5 $1 {[%emt 0:00:42] And now ...Bxf4 would win.} 30. Nge2 {[%emt 0:02:11]} Bxf4 {[%emt 0:02:06]} 31. Nxf4 {[%emt 0:00:06]} Ne6 {[%emt 0:00:13]} 32. Nxe6+ {[%emt 0:00:51]} Rxe6 $15 {[%emt 0:00:08][%mdl 4096] Endgame KRR-KRR} 33. Rh2 {[%emt 0:00:15]} f4 {[%emt 0:01:44]} 34. e4 {[%emt 0:01:04]} dxe4+ {[%emt 0:00:30]} 35. fxe4 {[%emt 0:00:03]} Reh6 {[%emt 0:00:09]} 36. Rgh1 {[%emt 0:07:00]} Rh4 {[%emt 0:01:17]} 37. Kc2 {[%emt 0:01:29]} Ke7 {[%emt 0:06:47][%cal Of7f5]} 38. Rf1 {[%emt 0:01:16]} Rd8 {[%emt 0:02:20]} 39. Rhf2 {[%emt 0:02:00]} Rxd4 {[%emt 0:01:03]} 40. Rxf4 {[%emt 0:00:02]} Rh7 {[%emt 0:00:21]} 41. R1f3 {[%emt 0:02:12]} c5 {[%emt 0:10:39]} 42. Rf5 {[%emt 0:05:05]} b6 {[%emt 0:00:47]} 43. R5f4 {[%emt 0:00:23]} Rd6 {[%emt 0:02:10]} 44. Kc3 {[%emt 0:04:27]} Rdh6 {[%emt 0:01:57]} 45. b4 {[%emt 0:03:51]} cxb4+ {[%emt 0:02:11]} 46. Kxb4 {[%emt 0:00:11]} Rh4 {[%emt 0:00:36]} 47. Kb5 {[%emt 0:20:38]} ({Much worse is} 47. Rxh4 Rxh4 48. Kb5 Rxe4 $15) 47... Rxf4 {[%emt 0:01:31]} 48. Rxf4 {[%emt 0:00:02]} Rxh3 $11 {[%emt 0:00:21] KR-KR} 49. Ka6 {[%emt 0:00:48]} Rh2 {[%emt 0:01:21]} 50. Kxa7 {[%emt 0:00:06]} Rxb2 {[%emt 0:00:07]} 51. Kb7 {[%emt 0:00:03]} f6 {[%emt 0:05:21]} 52. Kc6 {[%emt 0:00:16]} Ke6 {[%emt 0:00:34]} 53. Kc7 {[%emt 0:00:04]} Rb5 {[%emt 0:12:02]} 54. Kc6 $2 {[%emt 0:00:16][%mdl 8192] [#]} (54. Rh4 $11) 54... Rh5 $19 {[%emt 0:01:14]} 55. Kxb6 {[%emt 0:07:10]} Ke5 {[%emt 0:00:34] Black mates.} 56. Rf1 {[%emt 0:00:29]} Rh4 {[%emt 0:00:45]} 57. Rf5+ {[%emt 0:01:13]} Ke6 $1 {[%emt 0:00:14] Weighted Error Value: White=0.29 (precise) /Black=0.04 (flawless)} ({Weaker is} 57... Kxe4 58. Rxf6 Ke5 59. Rc6 $11) 0-1

[Event "85th Tata Steel Challengers 2023"]
[Site "Wijk aan Zee"]
[Date "2023.01.24"]
[Round "9.2"]
[White "Vaishali, Rameshbabu"]
[Black "Yilmaz, Mustafa"]
[Result "0-1"]
[ECO "B94"]
[WhiteElo "2425"]
[BlackElo "2609"]
[Annotator "TA"]
[PlyCount "68"]
[EventDate "2023.01.10"]
[EventType "tourn"]
[EventCountry "NED"]
[SourceTitle "playchess.com"]
[Source "ChessBase"]
[SourceQuality "1"]
[TimeControl "40/6000+30:30/3000+30:900+30"]

{[%evp 11,68,24,20,14,19,8,0,0,22,-35,12,23,35,-35,-41,-43,-35,-57,-42,-43,-46,-73,-25,-96,-89,-91,-91,-204,-201,-196,-193,-197,-165,-199,-195,-376,-93,-107,-131,-245,-213,-372,-372,-460,-461,-393,-230,-448,-377,-563,-556,-827,-828,-1164,-792,-2071,-2018,-1778,-1757]} 1. e4 {[%emt 0:00:18]} c5 {[%emt 0:00:08]} 2. Nf3 {[%emt 0:00:04]} d6 {[%emt 0:00:04]} 3. d4 {[%emt 0:00:04]} cxd4 {[%emt 0:00:03]} 4. Nxd4 {[%emt 0:00:05]} Nf6 {[%emt 0:00:05]} 5. Nc3 {[%emt 0:00:05]} a6 {[%emt 0:00:05]} 6. Bg5 {[%emt 0:00:05]} Nbd7 {[%emt 0:01:15]} 7. Be3 {[%emt 0:00:27] B94: Sicilian Najdorf: 6 Bg5 Nbd7.} Qc7 {[%emt 0:09:07]} 8. g4 {[%emt 0:01:27] With the idea g5.} h6 {[%emt 0:01:47]} 9. a4 {[%emt 0:01:02] [#] The position is equal.} e6 $146 {[%emt 0:24:43]} ({Predecessor:} 9... b6 10. Bg2 Bb7 11. h4 Ne5 12. g5 hxg5 13. hxg5 Rxh1+ 14. Bxh1 Nfd7 15. Nd5 Bxd5 16. exd5 {1-0 Kochavi,O (2356)-Leib,Y (1673) Ramat Gan Shavuot Rapid 2022 (5)}) 10. h4 {[%emt 0:07:18]} (10. Qe2 $11) 10... h5 {[%emt 0:13:39]} (10... d5 $15) 11. g5 $11 {[%emt 0:01:21]} Ng4 {[%emt 0:00:35] [#]} 12. g6 {[%emt 0:09:58]} Nde5 $15 {[%emt 0:04:03]} 13. gxf7+ {[%emt 0:00:14]} Qxf7 {[%emt 0:00:11]} 14. Qe2 {[%emt 0:05:19]} Nxe3 {[%emt 0:00:55]} 15. fxe3 {[%emt 0:11:57]} Bd7 {[%emt 0:02:20]} 16. O-O-O {[%emt 0:05:50]} O-O-O {[%emt 0:03:39]} (16... Be7 $17) 17. Bh3 {[%emt 0:06:53]} (17. Qd2 $11) 17... Be7 $17 {[%emt 0:02:08]} 18. Rdf1 {[%emt 0:02:43]} Bf6 {[%emt 0:07:41]} 19. Rhg1 {[%emt 0:15:45]} (19. Qd2 $17 {was worth a try.}) 19... Qe7 $19 {[%emt 0:06:02]} 20. Rf4 {[%emt 0:17:25]} Kb8 {[%emt 0:02:33]} (20... Bxh4 21. Nxe6 Bxe6 22. Bxe6+ (22. Nd5 Bxh3 23. Nxe7+ Bxe7 $17) 22... Qxe6 23. Rxh4 $17) 21. Qe1 {[%emt 0:01:11]} Rh6 {[%emt 0:01:48]} 22. Nce2 {[%emt 0:05:45]} Ng6 {[%emt 0:06:31][%cal Be5g6,Bg6h4,Bh4g2,Bg2e3,Be3c2,Bc2a1][%mdl 32]} (22... Bxa4 23. Bxe6 g5 24. hxg5 Bxg5 25. Nc3 Bxf4 26. exf4 $11) 23. Qb4 $2 {[%emt 0:05:30]} (23. Rxf6 {was necessary.} Qxf6 24. Rg5) 23... Rc8 $2 {[%emt 0:03:00]} ({And not} 23... Nxh4 24. Rxf6 Rxf6 25. e5 $15) (23... Bxh4 24. Bxe6 Nxf4 25. Nxf4 $11) ({But not} 23... Nxf4 $2 24. Nxf4 Bxd4 25. exd4 $19) (23... Bxd4 $19 {and Black stays clearly on top.} 24. exd4 Nxf4 25. Nxf4 Qxh4 26. Qxd6+ Ka8) 24. Rxf6 $17 {[%emt 0:08:00]} gxf6 {[%emt 0:02:09]} 25. Qb3 {[%emt 0:00:04]} (25. b3 $17 {might work better.}) 25... Nxh4 $19 {[%emt 0:04:48] aiming for ...e5.} 26. Nxe6 {[%emt 0:01:31]} (26. Nf4) 26... Rg6 {[%emt 0:04:59] Threatens to win with ...Rxg1+.} 27. Rd1 {[%emt 0:00:29] [#]} Rg2 $1 {[%emt 0:01:58][%mdl 576] Deflection} 28. N2d4 {[%emt 0:00:55]} ({Much worse is} 28. Bxg2 Bxe6 29. Qd3 Nxg2 $19) 28... Rg3 {[%emt 0:03:10]} (28... Rh2 $142 29. Bf5 Nf3) 29. Bf1 {[%emt 0:01:34]} (29. Rh1) 29... Bxe6 {[%emt 0:01:16]} 30. Nxe6 {[%emt 0:00:02]} (30. Qxe6 $142 Qxe6 31. Nxe6) 30... Ng2 {[%emt 0:00:58] Black is clearly winning.} 31. Bxa6 {[%emt 0:01:55]} Nxe3 {[%emt 0:01:03]} 32. Rd3 {[%emt 0:00:39] [#]} Nxc2 $1 {[%emt 0:02:46]} 33. Kd2 {[%emt 0:00:30]} (33. Rc3 Ne3) 33... Na1 {[%emt 0:00:44]} 34. Qb6 {[%emt 0:00:27]} Rc6 {[%emt 0:00:36][%mdl 64] Skewer. A brilliant game!   Weighted Error Value: White=1.05/Black=0.66} 0-1

[Event "85th Tata Steel Challengers 2023"]
[Site "Wijk aan Zee"]
[Date "2023.01.24"]
[Round "9.3"]
[White "Tabatabaei, M. Amin"]
[Black "Ivic, Velimir"]
[Result "1/2-1/2"]
[ECO "D33"]
[WhiteElo "2686"]
[BlackElo "2585"]
[Annotator "TA"]
[PlyCount "90"]
[EventDate "2023.01.10"]
[EventType "tourn"]
[EventCountry "NED"]
[SourceTitle "playchess.com"]
[Source "ChessBase"]
[SourceQuality "1"]
[TimeControl "40/6000+30:30/3000+30:900+30"]

{[%evp 11,90,39,25,-3,22,23,27,15,15,16,25,24,14,13,20,17,13,20,13,8,16,7,15,0,0,0,26,17,37,33,33,33,28,30,29,46,37,0,64,53,49,32,65,30,67,50,50,30,22,16,23,36,22,23,22,13,22,15,15,14,45,13,18,15,17,16,40,12,33,39,28,6,6,6,6,6,6,6,6,0,6]} 1. Nf3 {[%emt 0:01:16]} Nf6 {[%emt 0:00:32]} 2. c4 {[%emt 0:01:06]} c5 {[%emt 0:01:05]} 3. Nc3 {[%emt 0:00:11]} e6 {[%emt 0:01:06]} 4. g3 {[%emt 0:00:13]} d5 {[%emt 0:00:08]} 5. cxd5 {[%emt 0:00:06]} exd5 {[%emt 0:00:04]} 6. d4 {[%emt 0:00:10]} Nc6 {[%emt 0:00:04]} 7. a3 {[%emt 0:00:15] D33: Tarrasch Defence: 6 g3 sidelines.} cxd4 {[%emt 0:03:57]} 8. Nxd4 {[%emt 0:00:49]} Bc5 {[%emt 0:00:10] 8...Be7 is vanishing.} 9. Be3 {[%emt 0:00:14] White has an edge.} Bb6 {[%emt 0:00:21]} (9... Qb6 $2 10. Na4 Qa5+ 11. Bd2 $18 (11. b4 Nxb4 12. axb4 Bxb4+ 13. Bd2 Ne4 $18)) 10. Na4 {[%emt 0:00:52]} Bxd4 {[%emt 0:10:37]} 11. Bxd4 {[%emt 0:00:54]} O-O {[%emt 0:00:08]} 12. Bg2 {[%emt 0:04:02] [#]} Bg4 $146 {[%emt 0:05:32]} ({Predecessor:} 12... Re8 13. Nc3 Ne4 14. Nxe4 dxe4 15. Bc3 Bg4 16. h3 Bh5 17. Qa4 Bf3 18. Rd1 Qe7 19. Bxf3 exf3 {½-½ Khismatullin,D (2639)-Lorparizangeneh,S (2519) Moscow Aeroflot op-A 16th 2017 (1)}) 13. h3 {[%emt 0:12:40]} Bf5 {[%emt 0:00:25]} 14. O-O {[%emt 0:04:29]} Ne4 {[%emt 0:04:57]} 15. e3 {[%emt 0:05:04]} Re8 {[%emt 0:02:54]} 16. Rc1 {[%emt 0:06:37]} Qd7 {[%emt 0:07:40]} 17. g4 {[%emt 0:17:53]} Bg6 {[%emt 0:00:16]} (17... Nxd4 18. Qxd4 Be6 19. f3 $16) 18. Nc3 {[%emt 0:00:08]} Nxc3 {[%emt 0:12:25]} 19. Bxc3 {[%emt 0:02:23] A strong pair of Bishops.} (19. bxc3 Be4 $15) 19... Rad8 {[%emt 0:00:29]} 20. b4 {[%emt 0:02:00]} a6 {[%emt 0:04:57]} 21. a4 {[%emt 0:08:16]} b5 {[%emt 0:20:30]} 22. axb5 {[%emt 0:01:31]} (22. Ba1 {simplifies} f6 23. axb5 axb5 24. Bxd5+ Qxd5 25. Qxd5+ Rxd5 26. Rxc6 h5 27. Kh2) 22... axb5 {[%emt 0:00:06]} 23. Qe2 {[%emt 0:00:40]} Be4 $1 {[%emt 0:03:19]} 24. Qxb5 {[%emt 0:05:32][%cal Oc3g7]} (24. f3 $5 {[%cal Rf3e4]} d4 25. fxe4 dxc3 26. Qxb5 $14) 24... Rb8 {[%emt 0:12:28]} ({Better is} 24... Nd4 $1 $11 25. Qxd7 (25. Bxd4 $2 {loses.} Qxb5 26. f3 Bd3 $19) 25... Ne2+ 26. Kh2 Rxd7) 25. Qc5 {[%emt 0:02:59]} Nd8 {[%emt 0:00:26] [#] Strongly threatening ...Bxg2.} 26. Rfd1 {[%emt 0:06:44] Threatens to win with Qd4.} Ne6 {[%emt 0:03:26] Wards off Qd4} 27. Qc4 {[%emt 0:04:04]} Qa4 {[%emt 0:02:25]} 28. Qf1 {[%emt 0:10:46]} Rbc8 {[%emt 0:01:54]} 29. Be1 {[%emt 0:01:48]} Bxg2 {[%emt 0:02:08]} 30. Qxg2 {[%emt 0:00:29]} d4 {[%emt 0:00:11]} 31. Ra1 {[%emt 0:01:42]} (31. exd4 $2 {perishes.} Rxc1 32. Rxc1 Nf4 $19) 31... Qb3 {[%emt 0:01:48]} 32. Rab1 {[%emt 0:00:26]} (32. exd4 Nf4 33. Rab1 Qa3 $17) 32... Qa3 {[%emt 0:06:13]} 33. Bd2 {[%emt 0:00:02][%cal Be1d2,Bd2g5,Bg5e3][%mdl 32]} (33. exd4 Nf4 34. Ra1 Nxg2 $19) 33... Qa2 {[%emt 0:01:16]} 34. exd4 {[%emt 0:03:49]} Nxd4 {[%emt 0:00:10]} 35. b5 {[%emt 0:00:14] Black must now prevent b6.} Rcd8 {[%emt 0:01:08]} 36. Bg5 {[%emt 0:03:45]} (36. Be3 $5 Nxb5 37. Qc6 $14) 36... f6 {[%emt 0:02:24]} 37. Be3 {[%emt 0:00:16] And now b6 would win.} Nxb5 {[%emt 0:00:27][%mdl 64] [#] ...Nc3 would be deadly. Deflection} 38. Qc6 {[%emt 0:00:04] Against Nc3} Na3 {[%emt 0:00:48]} 39. Ra1 {[%emt 0:01:25]} Rxd1+ {[%emt 0:00:28]} 40. Rxd1 {[%emt 0:00:01][%cal Rc6e8]} Qe6 {[%emt 0:00:21] Black is weak on the dark squares} 41. Rd6 {[%emt 0:51:52]} Qe4 {[%emt 0:02:54] The position is equal.} 42. Qxe4 {[%emt 0:00:00]} Rxe4 {[%emt 0:00:06]} 43. Rd8+ {[%emt 0:00:00]} Kf7 {[%emt 0:00:06]} 44. Rd7+ {[%emt 0:00:00]} Kg8 $1 {[%emt 0:01:25]} 45. Rd8+ {[%emt 0:00:00]} Kf7 {[%emt 0:00:04] Weighted Error Value: White=0.07 (flawless) /Black=0.09 (flawless)} 1/2-1/2